fUSD/lending_fUSD_20260213
["ID","MTS","AMOUNT","RATE_DAILY","PERIOD"]
[405324680,1770999042170,-500.0,0.00013699,2]
[405324681,1770999042182,-550.78024348,0.00013699,2]
[405324682,1770999042191,-500.0,0.00013699,2]
[405324683,1770999042200,-170.11819774,0.00013699,2]
[405324684,1770999042210,-6797.0,0.00013895,2]
[405324685,1770999042219,-1953.0,0.00013895,2]
[405324686,1770999042228,-913.0,0.000139,2]
[405324687,1770999042238,-1000.0,0.00014247,2]
[405324688,1770999042247,-1000.0,0.00014247,2]
[405324689,1770999042256,-161.0,0.00014247,2]
[405324690,1770999042266,-6237.7,0.00014384,2]
[405324691,1770999042275,-570.41,0.00014699,2]
[405324692,1770999042284,-604.31585364,0.00014795,2]
[405324693,1770999042294,-514.41300795,0.00014795,2]
[405324694,1770999042303,-250.0,0.00015,2]
[405324697,1770999042313,-6237.7,0.00015068,2]
[405324700,1770999042322,-9069.107133,0.00015096,7]
[405324701,1770999042332,-300.0,0.00015229,2]
[405324704,1770999042341,-4715.56673826,0.000157,2]
[405324707,1770999042351,-158.01167476,0.00015711,2]
[405324708,1770999042361,-6510.720239,0.00015752,7]
[405324710,1770999042372,-6237.7,0.00015753,2]
[405324712,1770999042381,-302.88716653,0.00016,2]
[405324714,1770999042390,-258.280118,0.00016,2]
[405324715,1770999042400,-448.41,0.00016075,2]
[405324716,1770999042409,-9999.99,0.00016116,2]
[405324717,1770999042419,-4200.27,0.0001612,2]
[405324718,1770999042428,-38121.66895208,0.00016389,2]
[405324719,1770999042438,-6237.7,0.00016438,2]
[405324720,1770999042447,-185.49,0.00016438,5]
[405324721,1770999042458,-158.01167476,0.00016693,2]
[405324722,1770999042467,-159.34,0.00016712,2]
[405324723,1770999042476,-306.3167255,0.00016884,2]
[405324724,1770999042486,-500.0,0.000169,6]
[405324725,1770999042499,-160.0,0.00017,7]
[405324726,1770999042509,-300.0,0.00017,2]
[405324727,1770999042523,-500.0,0.00017096,2]
[405324728,1770999042532,-925.399,0.00017444,2]
[405324729,1770999042541,-1219.879,0.00017444,2]
[405324730,1770999042551,-2450.0,0.0001757,2]
[405324731,1770999042560,-5968.0,0.0001757,2]
[405324732,1770999042570,-6593.0,0.0001757,2]
[405324733,1770999042580,-158.01167476,0.00017675,2]
[405324734,1770999042589,-588.82024155,0.00017808,2]
[405324735,1770999042599,-588.82024155,0.00017808,2]
[405324736,1770999042609,-588.82024155,0.00017808,2]
[405324737,1770999042619,-588.82024155,0.00017808,2]
[405324738,1770999042628,-588.82024155,0.00017808,2]
[405324739,1770999042638,-588.82024155,0.00017808,2]
[405324740,1770999042647,-588.82024155,0.00017808,2]
[405324741,1770999042656,-588.82024155,0.00017808,2]
[405324742,1770999042666,-588.82024155,0.00017808,2]
[405324743,1770999042676,-588.82024155,0.00017808,2]
[405324744,1770999042685,-588.82024155,0.00017808,2]
[405324745,1770999042694,-588.82024155,0.00017808,2]
[405324746,1770999042704,-588.82024155,0.00017808,2]
[405324747,1770999042714,-588.82024155,0.00017808,2]
[405324748,1770999042723,-588.82024155,0.00017808,2]
[405324749,1770999042732,-588.82024155,0.00017808,2]
[405324750,1770999042742,-588.82024155,0.00017808,2]
[405324751,1770999042751,-588.82024155,0.00017808,2]
[405324752,1770999042761,-588.82024155,0.00017808,2]
[405324753,1770999042771,-588.82024155,0.00017808,2]
[405324754,1770999042781,-596.18049457,0.00017808,2]
[405324755,1770999042791,-596.18049457,0.00017808,2]
[405324756,1770999042800,-596.18049457,0.00017808,2]
[405324757,1770999042810,-596.18049457,0.00017808,2]
[405324758,1770999042819,-596.18049457,0.00017808,2]
[405324759,1770999042829,-370.24456559,0.00017808,2]
[405324760,1770999042838,-200.0,0.00017856,2]
[405324761,1770999042848,-667.0,0.00017921,2]
[405324762,1770999042857,-667.0,0.00017934,2]
[405324763,1770999042867,-200.17092804,0.00017937,2]
[405324764,1770999042877,-667.0,0.00017961,2]
[405324765,1770999042886,-667.0,0.00017998,2]
[405324766,1770999042896,-592.16,0.00017998,2]
[405324767,1770999042905,-592.16,0.00017998,2]
[405324768,1770999042915,-592.16,0.00017998,2]
[405324769,1770999042924,-592.16,0.00017998,2]
[405324770,1770999042933,-592.16,0.00017998,2]
[405324771,1770999042943,-592.16,0.00017998,2]
[405324772,1770999042952,-592.16,0.00017998,2]
[405324773,1770999042962,-592.16,0.00017998,2]
[405324774,1770999042971,-592.16,0.00017998,2]
[405324775,1770999042981,-592.16,0.00017998,2]
[405324776,1770999042990,-592.16,0.00017998,2]
[405324777,1770999043000,-592.16,0.00017998,2]
[405324778,1770999043009,-592.16,0.00017998,2]
[405324779,1770999043019,-592.16,0.00017998,2]
[405324780,1770999043028,-592.16,0.00017998,2]
[405324781,1770999043038,-592.16,0.00017998,2]
[405324782,1770999043047,-592.16,0.00017998,2]
[405324783,1770999043057,-592.16,0.00017998,2]
[405324784,1770999043066,-592.16,0.00017998,2]
[405324785,1770999043075,-592.16,0.00017998,2]
[405324786,1770999043084,-592.16,0.00017998,2]
[405324787,1770999043096,-592.16,0.00017998,2]
[405324788,1770999043111,-592.16,0.00017998,2]
[405324789,1770999043121,-592.16,0.00017998,2]
[405324790,1770999043130,-592.16,0.00017998,2]
[405324791,1770999043141,-592.16,0.00017998,2]
[405324792,1770999043150,-592.16,0.00017998,2]
[405324793,1770999043160,-592.16,0.00017998,2]
[405324794,1770999043171,-592.16,0.00017998,2]
[405324795,1770999043181,-716.81,0.00017998,2]
[405324796,1770999043190,-150.0,0.00017999,2]
[405324797,1770999043199,-10227.1809722,0.00018,2]
[405324798,1770999043209,-200.0,0.00018,2]
[405324799,1770999043218,-667.0,0.00018023,2]
[405324800,1770999043228,-667.0,0.00018061,2]
[405324801,1770999043237,-1000.0,0.00018196,7]
[405324802,1770999043247,-370.5727307,0.00018218,2]
[405324803,1770999043256,-150.0,0.000183,7]
[405324804,1770999043266,-500.0,0.00018301,2]
[405324805,1770999043275,-9881.0,0.00018348,2]
[405324806,1770999043285,-667.0,0.00018349,2]
[405324807,1770999043295,-667.0,0.00018358,2]
[405324808,1770999043304,-667.0,0.00018417,2]
[405324809,1770999043314,-667.0,0.00018499,2]
[405324810,1770999043324,-667.0,0.00018611,2]
[405324811,1770999043333,-667.0,0.00018628,2]
[405324812,1770999043344,-150.0,0.0001863,2]
[405324813,1770999043354,-158.01167476,0.00018656,2]
[405324814,1770999043365,-1000.0,0.00018672,2]
[405324815,1770999043375,-667.0,0.00018738,2]
[405324816,1770999043384,-578.39927052,0.00018772,2]
[405324817,1770999043394,-150.0,0.00018773,2]
[405324818,1770999043403,-200.0,0.00018773,2]
[405324819,1770999043413,-265.155,0.00018773,2]
[405324820,1770999043422,-218.82,0.00018773,2]
[405324821,1770999043432,-231.397,0.00018773,2]
[405324822,1770999043441,-159.709,0.00018773,2]
[405324823,1770999043451,-250.0,0.00018773,2]
[405324824,1770999043461,-192.031,0.00018773,2]
[405324825,1770999043471,-250.0,0.00018773,2]
[405324826,1770999043481,-213.191,0.00018773,2]
[405324827,1770999043490,-233.755,0.00018773,2]
[405324828,1770999043499,-174.0,0.00018773,2]
[405324829,1770999043508,-162.602,0.00018773,2]
[405324830,1770999043518,-1350.099,0.00018773,2]
[405324831,1770999043527,-623.693,0.00018773,2]
[405324832,1770999043536,-3529.919,0.00018773,2]
[405324833,1770999043547,-1298.116,0.00018773,2]
[405324834,1770999043556,-151.11,0.00018773,2]
[405324835,1770999043565,-667.0,0.0001889,2]
[405324836,1770999043575,-267.46074303,0.0001889,2]
[405324838,1770999043584,-667.0,0.00018903,2]
[405324839,1770999043593,-667.0,0.00018911,2]
[405324841,1770999043603,-350.0,0.00019,2]
[405324842,1770999043613,-667.0,0.0001913,2]
[405324843,1770999043622,-1739.64824993,0.00019178,2]
[405324845,1770999043632,-250.0,0.00019178,2]
[405324847,1770999043641,-150.21321861,0.00019178,2]
[405324849,1770999043651,-150.0,0.00019178,2]
[405324851,1770999043660,-150.0,0.00019178,2]
[405324853,1770999043669,-667.0,0.00019261,2]
[405324855,1770999043679,-667.0,0.0001937,2]
[405324857,1770999043688,-570.41,0.00019376,2]
[405324859,1770999043697,-238.4124,0.00019407,2]
[405324860,1770999043706,-10000.0,0.00019407,2]
[405324861,1770999043714,-5000.0,0.00019407,2]
[405324862,1770999043723,-277.35679052,0.00019438,2]
[405324863,1770999043731,-667.0,0.00019444,2]
[405324864,1770999043740,-667.0,0.00019491,2]
[405324865,1770999043750,-667.0,0.00019507,2]
[405324867,1770999043759,-667.0,0.00019527,2]
[405324868,1770999043769,-187.62,0.000196,2]
[405324870,1770999043779,-158.01167476,0.00019638,2]
[405324871,1770999043787,-667.0,0.00019698,2]
[405324872,1770999043797,-667.0,0.00019723,2]
[405324873,1770999043807,-350.0,0.00019726,2]
[405324874,1770999043815,-250.0,0.00019726,2]
[405324875,1770999043824,-250.0,0.00019726,2]
[405324876,1770999043833,-38121.66895208,0.00019747,2]
[405324877,1770999043842,-600.0,0.00019767,2]
[405324878,1770999043851,-160.866,0.00019818,2]
[405324879,1770999043861,-1672.202,0.00019818,2]
[405324880,1770999043871,-448.41,0.0001982,2]
[405324881,1770999043881,-171.19930698,0.00019986,2]
[405324882,1770999043890,-208.39,0.0002,2]
[405324883,1770999043899,-200.0,0.0002,2]
[405324884,1770999043909,-450.0,0.00020274,2]
[405324885,1770999043919,-335.56301619,0.00020274,2]
[405324886,1770999043930,-350.0,0.00020274,2]
[405324887,1770999043940,-918.0,0.00020444,2]
[405324888,1770999043949,-1208.0,0.00020444,2]
[405324889,1770999043958,-256.0,0.00020537,2]
[405324890,1770999043968,-2450.0,0.0002057,2]
[405324891,1770999043977,-5968.0,0.0002057,2]
[405324892,1770999043988,-6593.0,0.0002057,2]
[405324893,1770999043997,-158.01167476,0.0002062,2]
[405324894,1770999044007,-159.34,0.00020639,2]
[405324895,1770999044017,-550.0,0.00020822,2]
[405324896,1770999044031,-450.0,0.00020822,2]
[405324897,1770999044040,-500.0,0.00020959,2]
[405324898,1770999044050,-400.0,0.00021,2]
[405324899,1770999044060,-344.19,0.00021,7]
[405324900,1770999044069,-153.0,0.00021359,2]
[405324901,1770999044079,-6394.1,0.0002137,2]
[405324902,1770999044089,-203.02698614,0.0002137,2]
[405324903,1770999044100,-550.0,0.0002137,2]
[405324904,1770999044113,-158.01167476,0.00021602,2]
[405324905,1770999044123,-783.27192446,0.00021625,2]
[405324906,1770999044134,-150.0,0.00021773,2]
[405324907,1770999044146,-150.0,0.00021773,2]
[405324908,1770999044156,-150.0,0.00021773,2]
[405324909,1770999044167,-150.0,0.00021773,2]
[405324910,1770999044179,-150.0,0.00021773,2]
[405324911,1770999044189,-150.0,0.00021773,2]
[405324912,1770999044199,-150.0,0.00021773,2]
[405324913,1770999044208,-150.0,0.00021773,2]
[405324914,1770999044218,-150.0,0.00021773,2]
[405324915,1770999044404,-1337.0,0.00021773,2]
[405324916,1770999044415,-617.0,0.00021773,2]
[405324917,1770999044424,-3488.0,0.00021773,2]
[405324918,1770999044434,-1274.0,0.00021773,2]
[405324919,1770999044443,-150.0,0.00021773,2]
[405324920,1770999044453,-150.0,0.00021819,2]
[405324921,1770999044463,-2000.0,0.00021917,2]
[405324922,1770999044472,-5000.0,0.00021918,2]
[405324923,1770999044481,-650.0,0.00021918,2]
[405324924,1770999044491,-204.72,0.00021964,2]
[405324925,1770999044501,-570.41,0.00021999,2]
[405324926,1770999044510,-2421.331562,0.00022,2]
[405324927,1770999044520,-1151.25030593,0.00022,30]
[405324928,1770999044529,-1593.77,0.00022,7]
[405324929,1770999044539,-200.0,0.00022,2]
[405324930,1770999044548,-800.0,0.00022003,8]
[405324931,1770999044583,-800.0,0.00022003,8]
[405324932,1770999044592,-800.0,0.00022003,8]
[405324933,1770999044602,-800.0,0.00022003,8]
[405324934,1770999044612,-800.0,0.00022003,8]
[405324935,1770999044622,-800.0,0.00022003,8]
[405324936,1770999044632,-800.0,0.00022003,8]
[405324937,1770999044641,-800.0,0.00022003,8]
[405324938,1770999044651,-151.0,0.00022367,2]
[405324939,1770999044661,-151.0,0.00022367,2]
[405324940,1770999044671,-151.0,0.00022367,2]
[405324941,1770999044680,-12701.29,0.00022466,2]
[405324942,1770999044690,-302.06741177,0.00022466,2]
[405324943,1770999044700,-158.01167476,0.00022584,2]
[405324944,1770999044709,-987.0,0.000228,2]
[405324945,1770999044719,-308.0,0.000228,2]
[405324946,1770999044729,-450.0,0.00023,2]
[405324947,1770999044738,-160.0,0.00023,2]
[405324948,1770999044748,-1084.07923847,0.00023096,2]
[405324949,1770999044757,-941.0625153,0.000231,30]
[405324950,1770999044767,-38121.66895208,0.00023106,2]
[405324951,1770999044777,-1593.77,0.000232,7]
[405324952,1770999044786,-151.0,0.000232,2]
[405324953,1770999044795,-151.0,0.000232,2]
[405324954,1770999044805,-500.0,0.0002326,2]
[405324955,1770999044814,-918.0,0.00023444,2]
[405324956,1770999044823,-1208.0,0.00023444,2]
[405324957,1770999044833,-200.0,0.0002356,2]
[405324958,1770999044842,-158.01167479,0.00023566,2]
[405324959,1770999044851,-2450.0,0.0002357,2]
[405324960,1770999044860,-5968.0,0.0002357,2]
[405324961,1770999044870,-6584.0,0.0002357,2]
[405324962,1770999044879,-160.0,0.00024,7]
[405324963,1770999044889,-187.62,0.00024405,2]
[405324964,1770999044898,-600.0,0.0002451,2]
[405324965,1770999044909,-298.94,0.00024524,2]
[405324966,1770999044920,-159.34,0.00024566,2]
[405324967,1770999044929,-2000.0,0.00024657,12]
[405324968,1770999044938,-1003.41,0.00024658,2]
[405324969,1770999044947,-150.0,0.00024658,2]
[405324970,1770999044956,-150.0,0.00024773,2]
[405324971,1770999044966,-150.0,0.00024773,2]
[405324972,1770999044975,-150.0,0.00024773,2]
[405324973,1770999044985,-150.0,0.00024773,2]
[405324974,1770999044995,-150.0,0.00024773,2]
[405324975,1770999045005,-150.0,0.00024773,2]
[405324976,1770999045016,-150.0,0.00024773,2]
[405324977,1770999045028,-150.0,0.00024773,2]
[405324978,1770999045037,-150.0,0.00024773,2]
[405324979,1770999045047,-1337.0,0.00024773,2]
[405324980,1770999045057,-617.0,0.00024773,2]
[405324981,1770999045068,-3488.0,0.00024773,2]
[405324982,1770999045079,-1274.0,0.00024773,2]
[405324983,1770999045089,-570.41,0.00024799,2]
[405324984,1770999045103,-570.41,0.00024799,2]
[405324985,1770999045117,-570.41,0.00024799,2]
[405324986,1770999045127,-570.41,0.00024799,2]
[405324987,1770999045139,-570.62419818,0.00024799,2]
[405324988,1770999045149,-10010.19955384,0.00025,2]
[405324989,1770999045158,-500.0,0.00025,2]
[405324990,1770999045168,-2235.96346808,0.00025,2]
[405324991,1770999045178,-1593.77,0.000253,7]
[405324992,1770999045188,-298.94,0.00025482,2]
[405324993,1770999045200,-5202.4591682,0.0002549,2]
[405324994,1770999045210,-151.0,0.000255,2]
[405324995,1770999045221,-151.0,0.000255,2]
[405324996,1770999045232,-559.68726662,0.00025764,2]
[405324997,1770999045241,-150.0,0.0002589,2]
[405324998,1770999045251,-460.62741635,0.000259,2]
[405324999,1770999045262,-286.82,0.000263,14]
[405325000,1770999045272,-298.94,0.00026439,2]
[405325001,1770999045282,-918.0,0.00026444,2]
[405325002,1770999045292,-1208.0,0.00026444,2]
[405325003,1770999045303,-38121.66895208,0.00026465,2]
[405325004,1770999045313,-2450.0,0.0002657,2]
[405325005,1770999045324,-550.0,0.00027,2]
[405325006,1770999045335,-150.0,0.00027185,2]
[405325009,1770999045345,-150.0,0.00027369,2]
[405325011,1770999045354,-500.0,0.00027397,120]
[405325013,1770999045371,-416.878403,0.00027397,2]
[405325014,1770999045380,-416.878403,0.00027397,2]
[405325015,1770999045394,-416.878403,0.00027397,2]
[405325016,1770999045405,-416.878403,0.00027397,2]
[405325017,1770999045415,-490.90547,0.00027397,2]
[405325018,1770999045424,-490.90547,0.00027397,2]
[405325019,1770999045434,-490.90547,0.00027397,2]
[405325020,1770999045443,-490.90547,0.00027397,2]
[405325021,1770999045452,-150.0,0.00027773,2]
[405325022,1770999045462,-150.0,0.00027773,2]
[405325023,1770999045472,-150.0,0.00027773,2]
[405325024,1770999045481,-150.0,0.00027773,2]
[405325025,1770999045491,-150.0,0.00027773,2]
[405325026,1770999045501,-1337.0,0.00027773,2]
[405325027,1770999045511,-617.0,0.00027773,2]
[405325028,1770999045520,-3488.0,0.00027773,2]
[405325029,1770999045529,-1274.0,0.00027773,2]
[405325030,1770999045542,-1593.77,0.000278,7]
[405325031,1770999045551,-1003.41,0.00027866,2]
[405325032,1770999045561,-172.0,0.00028243,120]
[405325033,1770999045571,-350.0,0.0002826,2]
[405325034,1770999045580,-159.34,0.00028493,2]
[405325035,1770999045590,-523.71,0.000285,7]
[405325036,1770999045600,-503.92174178,0.000285,5]
[405325037,1770999045609,-350.0,0.00028544,2]
[405325038,1770999045622,-150.0,0.00028544,2]
[405325039,1770999045631,-1924.82496716,0.00028615,2]
[405325040,1770999045641,-370.5727307,0.00028644,2]
[405325041,1770999045650,-151.0,0.00028741,7]
[405325042,1770999045659,-38894.4541041,0.00028744,2]
[405325043,1770999045669,-653096.078187,0.00028744,2]
[405325044,1770999045679,-177.834787,0.00028744,7]
[405325045,1770999045689,-248.464248,0.00028744,7]
[405325046,1770999045698,-416.878403,0.00028744,7]
[405325047,1770999045708,-416.878403,0.00028744,7]
[405325048,1770999045717,-416.878403,0.00028744,7]
[405325049,1770999045727,-416.878403,0.00028744,7]
[405325050,1770999045736,-490.90547,0.00028744,7]
[405325051,1770999045746,-490.90547,0.00028744,7]
[405325052,1770999045755,-490.90547,0.00028744,7]
[405325053,1770999045765,-490.90547,0.00028744,7]
[405325054,1770999045776,-151.0,0.00028744,7]
[405325055,1770999045786,-242.968336,0.00028744,7]
[405325056,1770999045795,-209.96995941,0.00028744,2]
[405325058,1770999045804,-1000.0,0.0002888,2]
[405325060,1770999045813,-151.0,0.00028899,7]
[405325061,1770999045822,-151.0,0.00028899,7]
[405325062,1770999045832,-165.46002286,0.00028999,3]
[405325063,1770999045841,-151.0,0.00028999,3]
[405325065,1770999045850,-271.22537401,0.00028999,3]
[405325066,1770999045860,-600.0,0.00029,2]
[405325067,1770999045873,-258.82,0.00029101,2]
[405325068,1770999045883,-1000.0,0.00029154,2]
[405325069,1770999045893,-2416.99224932,0.0002921,2]
[405325070,1770999045902,-1317.51951,0.0002921,2]
[405325071,1770999045912,-1317.51952,0.0002921,2]
[405325072,1770999045922,-1317.51952,0.0002921,2]
[405325073,1770999045932,-1000.0,0.00029236,2]
[405325074,1770999045942,-1024.76482285,0.00029236,2]
[405325075,1770999045951,-1000.0,0.00029253,2]
[405325076,1770999045961,-1000.0,0.00029257,2]
[405325077,1770999045970,-1000.0,0.00029263,2]
[405325078,1770999045980,-200.0,0.00029263,2]
[405325079,1770999045989,-1000.0,0.00029283,2]
[405325080,1770999045998,-1000.0,0.00029287,2]
[405325081,1770999046007,-1000.0,0.00029294,2]
[405325082,1770999046016,-1000.0,0.00029307,2]
[405325083,1770999046026,-1000.0,0.00029315,2]
[405325084,1770999046035,-269.52,0.00029315,2]
[405325085,1770999046044,-1000.0,0.00029335,2]
[405325086,1770999046054,-250.16,0.00029342,2]
[405325087,1770999046064,-1000.0,0.00029362,2]
[405325088,1770999046073,-1000.0,0.00029362,2]
[405325089,1770999046083,-1000.0,0.00029366,2]
[405325090,1770999046093,-1000.0,0.00029367,2]
[405325091,1770999046103,-269.52,0.00029376,2]
[405325092,1770999046115,-1000.0,0.00029377,2]
[405325093,1770999046125,-1000.0,0.00029418,2]
[405325094,1770999046135,-1000.0,0.00029428,2]
[405325095,1770999046146,-1000.0,0.00029428,2]
[405325096,1770999046155,-269.52,0.00029438,2]
[405325097,1770999046165,-918.0,0.00029444,2]
[405325098,1770999046175,-1208.0,0.00029444,2]
[405325099,1770999046185,-1000.0,0.00029449,2]
[405325100,1770999046195,-1000.0,0.00029471,2]
[405325101,1770999046204,-1000.0,0.00029474,2]
[405325102,1770999046214,-1000.0,0.0002948,2]
[405325103,1770999046223,-1000.0,0.0002948,2]
[405325104,1770999046232,-150.0,0.000295,2]
[405325105,1770999046242,-200.0,0.000295,2]
[405325106,1770999046251,-300.0,0.000295,3]
[405325107,1770999046260,-152.0,0.000295,3]
[405325108,1770999046270,-155.0,0.000295,3]
[405325109,1770999046278,-152.0,0.000295,3]
[405325110,1770999046288,-1506.0,0.000295,3]
[405325111,1770999046297,-155.0,0.000295,3]
[405325112,1770999046306,-152.0,0.000295,3]
[405325113,1770999046316,-155.0,0.000295,3]
[405325114,1770999046325,-1506.0,0.000295,3]
[405325115,1770999046335,-249.54096104,0.000295,3]
[405325116,1770999046344,-152.0,0.000295,3]
[405325117,1770999046353,-155.0,0.000295,3]
[405325118,1770999046365,-1506.0,0.000295,3]
[405325119,1770999046375,-159.0,0.000295,3]
[405325120,1770999046385,-1506.0,0.000295,3]
[405325121,1770999046394,-282.60283076,0.000295,3]
[405325122,1770999046404,-158.06269149,0.000295,3]
[405325123,1770999046413,-1506.0,0.000295,3]
[405325124,1770999046422,-155.0,0.000295,3]
[405325125,1770999046432,-152.0,0.000295,3]
[405325126,1770999046442,-946.61991843,0.000295,3]
[405325127,1770999046451,-155.0,0.000295,3]
[405325128,1770999046461,-152.0,0.000295,3]
[405325129,1770999046471,-155.0,0.000295,3]
[405325130,1770999046481,-152.0,0.000295,3]
[405325131,1770999046491,-155.0,0.000295,3]
[405325132,1770999046501,-152.0,0.000295,3]
[405325133,1770999046511,-151.0,0.000295,3]
[405325134,1770999046520,-280.0,0.000295,3]
[405325135,1770999046530,-152.0,0.000295,3]
[405325136,1770999046540,-151.0,0.000295,3]
[405325137,1770999046549,-152.0,0.000295,3]
[405325138,1770999046559,-151.0,0.000295,3]
[405325139,1770999046569,-152.0,0.000295,3]
[405325140,1770999046578,-151.0,0.000295,3]
[405325141,1770999046588,-152.0,0.000295,3]
[405325142,1770999046598,-151.0,0.000295,3]
[405325143,1770999046607,-151.0,0.000295,3]
[405325144,1770999046619,-152.0,0.000295,3]
[405325145,1770999046628,-151.0,0.000295,3]
[405325146,1770999046638,-152.0,0.000295,3]
[405325147,1770999046647,-151.0,0.000295,3]
[405325148,1770999046657,-152.0,0.000295,3]
[405325149,1770999046666,-151.0,0.000295,3]
[405325150,1770999046675,-152.0,0.000295,3]
[405325151,1770999046685,-151.0,0.000295,3]
[405325152,1770999046694,-152.0,0.000295,3]
[405325153,1770999046703,-151.0,0.000295,3]
[405325154,1770999046712,-152.0,0.000295,3]
[405325155,1770999046722,-151.0,0.000295,3]
[405325156,1770999046731,-151.0,0.000295,3]
[405325157,1770999046741,-151.0,0.000295,3]
[405325158,1770999046750,-152.0,0.000295,3]
[405325159,1770999046759,-157.38748611,0.000295,3]
[405325160,1770999046768,-152.0,0.000295,3]
[405325161,1770999046777,-152.0,0.000295,3]
[405325162,1770999046787,-152.0,0.000295,3]
[405325163,1770999046796,-152.0,0.000295,3]
[405325164,1770999046805,-294.0430813,0.000295,3]
[405325165,1770999046815,-150.0,0.000295,2]
[405325166,1770999046824,-3479.54079331,0.000295,2]
[405325167,1770999046833,-150.0,0.000295,2]
[405325168,1770999046842,-13210.66654609,0.000295,2]
[405325169,1770999046852,-200.0,0.000295,2]
[405325170,1770999046861,-200.0,0.000295,2]
[405325171,1770999046872,-675.39687965,0.000295,2]
[405325172,1770999046881,-608.30185575,0.000295,2]
[405325173,1770999046890,-1317.51952,0.000295,2]
[405325174,1770999046899,-1317.51952,0.000295,2]
[405325175,1770999046908,-1317.51952,0.000295,2]
[405325176,1770999046917,-150.0,0.000295,2]
[405325177,1770999046927,-350.0,0.0002956,5]
[405325178,1770999046936,-2450.0,0.0002957,2]
[405325179,1770999046946,-1999.0,0.00029702,2]
[405325180,1770999046955,-150.0,0.00029753,22]
[405325181,1770999046964,-400.0,0.00029768,30]
[405325182,1770999046973,-162.72000595,0.00029768,30]
[405325183,1770999046983,-600.499113,0.00029773,120]
[405325184,1770999046992,-200.0,0.00029795,2]
[405325185,1770999047002,-200.0,0.00029795,2]
[405325186,1770999047012,-200.0,0.00029795,2]
[405325187,1770999047021,-38121.66895208,0.00029824,2]
[405325188,1770999047030,-4974.64518398,0.000299,120]
[405325189,1770999047039,-3075.043,0.000299,2]
[405325190,1770999047049,-3075.043,0.000299,2]
[405325191,1770999047058,-3075.04,0.000299,2]
[405325192,1770999047067,-150.0,0.00029971,2]
[405325193,1770999047077,-1000.0,0.00029976,2]
[405325194,1770999047087,-472.90898588,0.00029997,3]
[405325195,1770999047100,-1087.42936172,0.00029999,3]
[405325196,1770999047115,-5649.00911856,0.0003,3]
[405325197,1770999047128,-177.81953257,0.0003,120]
[405325198,1770999047138,-562.90619471,0.0003,120]
[405325199,1770999047149,-187.06998326,0.0003,120]
[405325200,1770999047159,-3280.26640264,0.0003,10]
[405325201,1770999047168,-4624.34997032,0.0003,30]
[405325202,1770999047178,-1000.0,0.0003,120]
[405325203,1770999047186,-5054.0,0.0003,7]
[405325204,1770999047195,-803.93799394,0.0003,7]
[405325205,1770999047205,-1000.03264903,0.0003,2]
[405325206,1770999047215,-2332.61066288,0.0003,120]
[405325207,1770999047224,-150.0,0.0003,32]
[405325208,1770999047234,-160.0,0.0003,3]
[405325209,1770999047243,-160.0,0.0003,3]